bitfinex/quotes_ETHUSD_20251110
["timestamp","ask_amount","ask_price","bid_price","bid_amount"]
[1762785251406,0.495,3600.8,3598.1,0.417504]
[1762785251977,0.495,3600.8,3598.2,0.405504]
[1762785252299,0.495,3600.8,3598.3,0.4332949]
[1762785252439,0.401,3600.7,3598.5,0.405504]
[1762785252640,0.401,3600.7,3598.3,3.18456867]
[1762785252979,0.495,3600.6,3598.5,0.405504]
[1762785253136,0.495,3600.6,3598.4,0.405504]
[1762785253460,0.495,3600.6,3598.2,0.405504]
[1762785253973,0.495,3600.6,3598.1,0.012]
[1762785254136,0.55,3600.5,3598.1,0.417504]
[1762785254332,0.55,3600.5,3598.2,0.3196816]
[1762785254687,0.55,3600.5,3598.1,0.012]
[1762785254688,0.1831,3598.2,3598.1,0.012]
[1762785255166,0.6781,3598.2,3598.1,0.012]
[1762785256242,0.6781,3598.2,3597.7,0.002]
[1762785256440,0.495,3598.1,3596.1,0.01]
[1762785257140,0.689,3598.0,3597.8,0.002]
[1762785257448,0.689,3598.0,3596.1,0.01]
[1762785257636,0.495,3597.9,3596.1,0.01]
[1762785257836,0.495,3597.9,3597.5,0.405504]
[1762785258149,0.495,3597.9,3597.7,0.405504]
[1762785258338,0.1831,3597.5,3597.4,0.002]
[1762785258543,0.1831,3597.5,3596.1,0.01]
[1762785258841,0.1831,3596.2,3596.1,0.01]
[1762785259077,0.43766673,3596.2,3596.1,0.01]
[1762785259267,0.93266673,3596.2,3594.1,2.82014949]
[1762785259471,0.25456673,3596.1,3595.5,0.02981254]
[1762785259678,0.25456673,3596.0,3595.5,0.002]
[1762785260067,0.1831,3596.4,3595.5,0.002]
[1762785260275,0.495,3596.8,3595.7,0.405504]
[1762785260583,0.495,3596.7,3596.6,0.405504]
[1762785260934,0.495,3596.7,3595.5,0.002]
[1762785261950,0.1831,3598.2,3595.5,0.002]
[1762785261951,4.51610352,3603.2,3603.0,3153.25113165]
[1762785262239,8.22926859,3603.1,3603.0,2536.16669742]
[1762785262501,8.22926859,3603.1,3603.0,2503.38420066]
[1762785262502,16.37025521,3603.1,3603.0,2503.38420066]
[1762785262642,60.96475121,3603.1,3603.0,2497.81988273]
[1762785262987,40.85561762,3603.1,3603.0,2488.50354649]
[1762785263143,38.08022976,3603.1,3603.0,2488.50354649]
[1762785263334,38.77222976,3603.1,3603.0,2488.50354649]
[1762785263539,38.59842843,3603.1,3603.0,2487.95354649]
[1762785263769,39.85814043,3603.1,3603.0,2487.67937068]
[1762785264078,39.09342843,3603.1,3603.0,2465.65794423]
[1762785264298,39.09342843,3603.1,3603.0,2460.09630626]
[1762785264299,23.03462843,3603.1,3603.0,2460.09630626]
[1762785264598,17.7167572,3603.1,3603.0,2457.31598068]
[1762785264747,2.7167572,3603.1,3603.0,2451.75532952]
[1762785264940,34.2167572,3603.1,3603.0,2440.73039281]
[1762785265278,25.61261556,3603.1,3603.0,2440.72467895]
[1762785265579,25.61261556,3603.1,3603.0,2439.95361728]
[1762785265580,39.35290356,3603.1,3603.0,2439.95361728]
[1762785265740,39.41843024,3603.1,3603.0,2439.60135382]
[1762785265944,17.81004534,3603.1,3603.0,2439.60135382]
[1762785266144,23.05804534,3603.1,3603.0,2439.60135382]
[1762785266372,24.72326134,3603.1,3603.0,2438.06911495]
[1762785266578,24.42614224,3603.1,3603.0,2437.4123586]
[1762785266792,25.15185365,3603.1,3603.0,2437.4123586]
[1762785267197,41.40385365,3603.1,3603.0,2437.4123586]
[1762785267543,40.63685365,3603.1,3603.0,2434.30573638]
[1762785268043,40.63685365,3603.1,3603.0,2432.75442455]
[1762785268044,41.40385365,3603.1,3603.0,2432.75442455]
[1762785268249,41.40385365,3603.1,3603.0,2431.39133328]
[1762785268479,41.11367258,3603.1,3603.0,2429.06067743]
[1762785268680,41.11367258,3603.1,3603.0,2428.19949493]
[1762785268888,41.11367258,3603.1,3603.0,2427.3646056]
[1762785269070,41.32748567,3603.1,3603.0,2426.5297674]
[1762785271570,40.94170392,3603.1,3603.0,2422.43075101]
[1762785271772,40.94170392,3603.1,3603.0,2421.72566217]
[1762785272006,44.14373658,3603.1,3603.0,2421.24554196]
[1762785272160,40.67839083,3603.1,3603.0,2419.75179607]
[1762785272359,40.92315067,3603.1,3603.0,2419.48478533]
[1762785272555,40.64356822,3603.1,3603.0,2417.5828771]
[1762785272860,40.89608647,3603.1,3603.0,2416.48342451]
[1762785273069,19.39608647,3603.1,3603.0,2415.18342451]
[1762785273516,19.39608647,3603.1,3603.0,2414.69363811]
[1762785273666,19.15132663,3603.1,3603.0,2414.69363811]
[1762785273989,40.86616947,3603.1,3603.0,2412.65009045]
[1762785274393,40.65132663,3603.1,3603.0,2412.65009045]
[1762785274692,39.09499628,3603.1,3603.0,2411.62463584]
[1762785274899,41.04570828,3603.1,3603.0,2401.53066028]
[1762785275192,41.5793613,3603.1,3603.0,2393.18813323]
[1762785275395,41.5793613,3603.1,3603.0,2388.86769442]
[1762785275579,42.9858301,3603.1,3603.0,2363.35204739]
[1762785275793,42.59144845,3603.1,3603.0,2355.16511614]
[1762785275998,42.3399302,3603.1,3603.0,2355.16511614]
[1762785276506,42.80654081,3603.1,3603.0,2355.16511614]
[1762785276872,42.80654081,3603.1,3603.0,2354.82544739]
[1762785277114,42.80654081,3603.1,3603.0,2352.53532344]
[1762785277315,50.87101047,3603.1,3603.0,2351.40575265]
[1762785277519,48.09462261,3603.1,3603.0,2349.86665123]
[1762785277698,47.85147609,3603.1,3603.0,2349.59113886]
[1762785278193,48.10419576,3603.1,3603.0,2349.59113886]
[1762785278408,48.10419576,3603.1,3603.0,2348.93499001]
[1762785278622,17.85147609,3603.1,3603.0,2318.03084028]
[1762785278791,18.17026504,3603.1,3603.0,2287.50643182]
[1762785278990,18.39397562,3603.1,3603.0,2287.50643182]
[1762785279349,47.70397562,3603.1,3603.0,2287.50643182]
[1762785279635,48.39397562,3603.1,3603.0,2287.18786633]
[1762785279811,48.17026504,3603.1,3603.0,2286.91561954]
[1762785280017,48.1413246,3603.1,3603.0,2286.91561954]
[1762785280214,47.4513246,3603.1,3603.0,2286.91561954]
[1762785280391,48.16402285,3603.1,3603.0,2286.91561954]
[1762785281011,48.16402285,3603.1,3603.0,2286.17737972]
[1762785281350,48.16402285,3603.1,3603.0,2284.6382783]
[1762785281630,47.628012,3603.1,3603.0,2279.82819336]
[1762785281789,47.628012,3603.1,3603.0,2278.30744815]
[1762785281995,51.09924897,3603.1,3603.0,2278.0668997]
[1762785282417,48.09524897,3603.1,3603.0,2278.0668997]
[1762785282634,48.09524897,3603.1,3603.0,2277.82584131]
[1762785282800,48.09524897,3603.1,3603.0,2277.60487111]
[1762785283004,48.49147172,3603.1,3603.0,2277.12413015]
[1762785283630,48.49147172,3603.1,3603.0,2274.85037673]
[1762785283808,48.24048431,3603.1,3603.0,2274.42217427]
[1762785284005,48.48024287,3603.1,3603.0,2274.18257776]
[1762785284210,48.48024287,3603.1,3603.0,2273.96294763]
[1762785284410,48.24048431,3603.1,3603.0,2273.75529465]
[1762785284791,48.4919604,3603.1,3603.0,2221.50177552]
[1762785285131,48.24048431,3603.1,3603.0,2221.50177552]
[1762785285334,48.4981397,3603.1,3603.0,2219.22377316]
[1762785285536,48.4981397,3603.1,3603.0,2218.97331629]
[1762785285794,48.24048431,3603.1,3603.0,2218.97331629]
[1762785286177,48.44752648,3603.1,3603.0,2218.97331629]
[1762785286324,49.282903,3603.1,3603.0,2218.97331629]
[1762785286800,49.282903,3603.1,3603.0,2218.71044443]
[1762785286997,19.42863878,3603.1,3603.0,2136.53723335]
[1762785287203,19.09416603,3603.1,3603.0,2111.29249268]
[1762785287444,19.49967003,3603.1,3603.0,2106.35237166]
[1762785287604,49.49967003,3603.1,3603.0,2103.88542088]
[1762785287800,49.49967003,3603.1,3603.0,2022.79182088]
[1762785287801,19.52396921,3603.1,3603.0,2022.79182088]
[1762785288044,19.75372249,3603.1,3603.0,2022.79182088]
[1762785288330,19.75292249,3603.1,3603.0,2001.51331978]
[1762785288540,51.12184155,3603.1,3603.0,2001.23481868]
[1762785288728,51.12184155,3603.1,3603.0,1998.50890728]
[1762785288907,51.12184155,3603.1,3603.0,1948.50890728]
[1762785289097,19.75292249,3603.1,3603.0,1927.75048412]
[1762785289302,19.75292249,3603.1,3603.0,1925.66674103]
[1762785289303,49.57151311,3603.1,3603.0,1925.66674103]
[1762785289537,19.78380097,3603.1,3603.0,1925.15665318]
[1762785289725,49.78380097,3603.1,3603.0,1924.87795318]
[1762785289928,49.78380097,3603.1,3603.0,1924.59925318]
[1762785290124,49.92869739,3603.1,3603.0,1924.11725318]
[1762785290328,49.76440953,3603.1,3603.0,1922.7497223]
[1762785290524,49.72247289,3603.1,3603.0,1921.76999072]
[1762785290739,49.72247289,3603.1,3603.0,1921.49149634]
[1762785291042,49.57225541,3603.1,3603.0,1921.49149634]
[1762785291215,50.94117447,3603.1,3603.0,1915.02149634]
[1762785291411,51.37703199,3603.1,3603.0,1883.79898603]
[1762785291606,50.88399686,3603.1,3603.0,1883.20088177]
[1762785291808,52.64018657,3603.1,3603.0,1882.67481557]
[1762785292043,51.36881704,3603.1,3603.0,1880.35982665]
[1762785292345,49.99332874,3603.1,3603.0,1880.08969523]
[1762785292643,49.99332874,3603.1,3603.0,1873.35266516]
[1762785292818,49.99332874,3603.1,3603.0,1873.02695771]
[1762785293160,49.33199432,3603.1,3603.0,1869.18191714]
[1762785293387,49.33199432,3603.1,3603.0,1865.3721872]
[1762785293664,49.58255463,3603.1,3603.0,1864.49994027]
[1762785293875,49.32978059,3603.1,3603.0,1861.32685976]
[1762785294186,18.79525866,3603.1,3603.0,1777.33132267]
[1762785294475,18.68005447,3603.1,3603.0,1724.90372686]
[1762785294634,17.82875866,3603.1,3603.0,1724.90372686]
[1762785294831,18.68617026,3603.1,3603.0,1724.53742233]
[1762785295042,19.1482475,3603.1,3603.0,1719.46997701]
[1762785295264,39.57927644,3603.1,3603.0,1716.85997701]
[1762785295430,39.57927644,3603.1,3603.0,1714.25090356]
[1762785295431,38.61277644,3603.1,3603.0,1714.25090356]
[1762785295626,39.51437265,3603.1,3603.0,1710.13062723]
[1762785296256,39.95027053,3603.1,3603.0,1692.18932723]
[1762785296443,39.95027053,3603.1,3603.0,1689.35232723]
[1762785296644,19.45027053,3603.1,3603.0,1689.35232723]
[1762785296845,48.76227053,3603.1,3603.0,1688.58727688]
[1762785297151,49.45027053,3603.1,3603.0,1688.22869386]
[1762785297360,49.51383038,3603.1,3603.0,1687.92634179]
[1762785297533,49.91933438,3603.1,3603.0,1683.5984274]
[1762785297870,49.91933438,3603.1,3603.0,1681.34417129]
[1762785298174,49.91933438,3603.1,3603.0,1680.79417129]
[1762785298370,49.91933438,3603.1,3603.0,1680.56045235]
[1762785298565,49.64217832,3603.1,3603.0,1680.34620999]
[1762785298863,49.83871386,3603.1,3603.0,1680.34620999]
[1762785299267,49.83871386,3603.1,3603.0,1666.47682116]
[1762785299470,50.07372941,3603.1,3603.0,1626.46376385]
[1762785299627,50.04653641,3603.1,3603.0,1624.98222397]
[1762785299828,49.23267832,3603.1,3603.0,1622.5726766]
[1762785300055,49.92167832,3603.1,3603.0,1622.5726766]
[1762785300257,47.97296632,3603.1,3603.0,1622.5726766]
[1762785300529,0.001,3603.5,3603.0,1622.5726766]
[1762785300731,0.98053328,3603.1,3603.0,1622.5726766]
[1762785300959,0.001,3604.7,3603.0,1623.0693766]
[1762785301163,0.83509515,3603.3,3603.1,0.4967]
[1762785301409,0.01,3604.9,3603.1,0.4967]
[1762785301610,0.43567894,3604.3,3603.1,0.4967]
[1762785301770,0.01,3604.9,3603.1,0.4967]
[1762785301968,2.09460495,3604.7,3603.0,1621.53027518]
[1762785302283,2.61668906,3604.6,3603.0,1621.53027518]
[1762785302588,43.05938906,3604.6,3603.0,1621.53027518]
[1762785302770,15.0,3603.1,3603.0,1621.53027518]
[1762785302971,0.691,3603.1,3603.0,1621.53027518]
[1762785303384,1.0039,3603.1,3603.0,1621.53027518]
[1762785303774,32.263612,3603.1,3603.0,1620.23027518]
[1762785304306,9.520712,3603.1,3603.0,1620.23027518]
[1762785304503,6.323612,3603.1,3603.0,1620.23027518]
[1762785304703,21.323612,3603.1,3603.0,1620.23027518]
[1762785304909,16.209712,3603.1,3603.0,1620.23027518]
[1762785305127,0.14520887,3604.5,3603.0,1620.72697518]
[1762785305417,0.4356813,3603.5,3603.1,0.4967]
[1762785305627,1.31382944,3604.9,3603.1,0.4967]
[1762785305785,15.0,3603.6,3603.0,1619.42697518]
[1762785306408,11.44501191,3603.6,3603.0,1619.42697518]
[1762785306615,2.71908243,3603.6,3603.0,1619.42697518]
[1762785306819,0.692,3603.5,3603.0,1619.42697518]
[1762785306972,0.01,3604.9,3603.0,1619.42697518]
[1762785307618,0.01,3604.9,3604.8,0.18160071]
[1762785307771,0.01,3604.9,3604.4,0.1836]
[1762785308170,0.01,3604.9,3604.0,0.1836]
[1762785308372,0.692,3604.8,3604.0,0.1836]
[1762785308571,0.692,3604.8,3603.6,0.1409]
[1762785308774,0.1823,3604.7,3603.6,0.13583]
[1762785309086,0.43548559,3604.6,3603.6,0.13583]
[1762785309298,0.88598559,3604.6,3603.0,1618.62367518]
[1762785309701,1.259712,3604.0,3603.0,1618.62367518]
[1762785309900,1.259712,3604.0,3603.0,1617.32367518]
[1762785309901,1.259712,3603.8,3603.0,1617.32367518]
[1762785310074,31.259712,3603.7,3603.0,1617.32367518]
[1762785310283,0.693,3603.6,3603.0,1617.32367518]
[1762785310627,15.0,3604.1,3603.1,0.4967]
[1762785310775,15.0,3604.1,3604.0,0.1359]
[1762785310974,15.693,3604.1,3604.0,0.1359]
[1762785311213,15.693,3604.1,3604.0,0.6326]
[1762785311506,16.952712,3604.1,3604.0,0.6326]
[1762785311708,1.259712,3604.0,3603.1,0.4967]
[1762785311916,1.502,3603.9,3603.0,1609.68957518]
[1762785312431,1.502,3603.8,3603.0,1609.68957518]
[1762785312630,16.259712,3603.1,3603.0,1609.68957518]
[1762785313294,16.259712,3603.1,3603.0,1608.38957518]
[1762785313619,46.953712,3603.1,3603.0,1607.11997518]
[1762785313824,47.38946711,3603.1,3603.0,1607.11997518]
[1762785314532,47.43946711,3603.1,3603.0,1590.03609102]
[1762785314716,47.38946711,3603.1,3603.0,1589.60049102]
[1762785314916,47.43946711,3603.1,3603.0,1589.60049102]
[1762785315455,47.43946711,3603.1,3603.0,1575.8677747]
[1762785315598,46.80686711,3603.1,3603.0,1575.8677747]
[1762785315793,37.65786711,3603.1,3603.0,1575.8677747]
[1762785315992,2.50186711,3603.1,3603.0,1575.8677747]
[1762785316293,1.13075511,3603.1,3603.0,1575.8677747]
[1762785316495,0.695,3603.1,3603.0,1575.8677747]
[1762785316811,15.695,3603.1,3603.0,1575.8677747]
[1762785317142,16.954712,3603.1,3603.0,1575.8677747]
[1762785317293,47.066112,3603.1,3603.0,1575.8677747]
[1762785317694,55.066112,3603.1,3603.0,1575.8677747]
[1762785317933,55.066112,3603.1,3603.0,1574.5677747]
[1762785318141,53.0,3603.1,3603.0,1574.5677747]
[1762785318299,23.696,3603.1,3603.0,1574.5677747]
[1762785318637,24.955712,3603.1,3603.0,1574.5677747]
[1762785318835,24.259712,3603.1,3603.0,1574.5677747]
[1762785319021,9.15292374,3603.1,3603.0,1575.0644747]
[1762785319401,8.4267354,3603.1,3603.0,1575.0644747]
[1762785319596,9.1237354,3603.1,3603.0,1575.0644747]
[1762785320001,9.1237354,3603.1,3603.0,1574.5677747]
[1762785320408,10.4792625,3603.1,3603.0,1574.5677747]
[1762785321631,25.4792625,3603.1,3603.0,1574.5677747]
[1762785322039,28.4832625,3603.1,3603.0,1574.5677747]
[1762785322336,55.6581625,3603.1,3603.0,1573.0706747]
[1762785322843,55.6581625,3603.1,3603.0,1572.6349747]
[1762785323201,55.6581625,3603.1,3603.0,1572.54806047]
[1762785323407,55.6581625,3603.1,3603.0,1571.00895905]
[1762785324237,33.0221625,3603.1,3603.0,1571.00895905]
[1762785324443,55.6581625,3603.1,3603.0,1571.00895905]
[1762785324615,42.3771625,3603.1,3603.0,1571.00895905]
[1762785324966,47.65816568,3603.1,3603.0,1571.00895905]
[1762785325106,16.78226568,3603.1,3603.0,1571.00895905]
[1762785325311,15.52255368,3603.1,3603.0,1571.00895905]
[1762785325627,16.21955368,3603.1,3603.0,1571.46045905]
[1762785325822,16.21955368,3603.1,3603.0,1571.00895905]
[1762785326021,17.47926568,3603.1,3603.0,1571.00895905]
[1762785326342,15.52255368,3603.1,3603.0,1571.00895905]
[1762785326659,15.7839451,3603.1,3603.0,1571.00895905]
[1762785326864,17.0436571,3603.1,3603.0,1571.00895905]
[1762785327340,17.2225571,3603.1,3603.0,1571.00895905]
[1762785327509,29.9375571,3603.1,3603.0,1571.00895905]
[1762785327705,29.9375571,3603.1,3603.0,1569.51185905]
[1762785328155,29.7586571,3603.1,3603.0,1569.51185905]
[1762785328360,17.0436571,3603.1,3603.0,1569.51185905]
[1762785328858,17.18888812,3603.1,3603.0,1569.51185905]
[1762785329019,15.92917612,3603.1,3603.0,1569.51185905]
[1762785329218,34.12717612,3603.1,3603.0,1569.51185905]
[1762785329437,17.18888812,3603.1,3603.0,1569.51185905]
[1762785329621,47.6245824,3603.1,3603.0,1569.51185905]
[1762785329837,25.6245824,3603.1,3603.0,1569.51185905]
[1762785330220,26.99350146,3603.1,3603.0,1569.51185905]
[1762785330625,50.74350146,3603.1,3603.0,1569.51185905]
[1762785331458,26.99350146,3603.1,3603.0,1569.51185905]
[1762785331818,58.49550146,3603.1,3603.0,1569.51185905]
[1762785332022,58.6285824,3603.1,3603.0,1569.51185905]
[1762785332264,58.6285824,3603.1,3603.0,1565.97346763]
[1762785332265,31.9015824,3603.1,3603.0,1565.97346763]
[1762785332768,64.66288812,3603.1,3603.0,1559.50346763]
[1762785333064,30.96188812,3603.1,3603.0,1559.50346763]
[1762785333237,31.65888812,3603.1,3603.0,1559.50346763]
[1762785333646,30.96188812,3603.1,3603.0,1559.50346763]
[1762785333961,46.78712509,3603.1,3603.0,1558.20346763]
[1762785334161,32.49312509,3603.1,3603.0,1558.20346763]
[1762785334316,31.65788812,3603.1,3603.0,1558.65496763]
[1762785334517,61.65788812,3603.1,3603.0,1558.20346763]
[1762785334723,61.65788812,3603.1,3603.0,1558.65496763]
[1762785334724,31.65788812,3603.1,3603.0,1558.65496763]
[1762785334943,31.65788812,3603.1,3603.0,1558.20346763]
[1762785335720,23.65788812,3603.1,3603.0,1558.20346763]
[1762785335922,22.96188812,3603.1,3603.0,1558.20346763]
[1762785336158,23.65808812,3603.1,3603.0,1556.66436621]
[1762785336365,23.65808812,3603.1,3603.0,1557.11586621]
[1762785336520,21.70137612,3603.1,3603.0,1557.11586621]
[1762785336720,21.7521451,3603.1,3603.0,1557.11586621]
[1762785336921,23.0118571,3603.1,3603.0,1556.66436621]
[1762785337133,23.0118571,3603.1,3603.0,1557.11586621]
[1762785337334,23.15705322,3603.1,3603.0,1556.66436621]
[1762785338034,53.15705322,3603.1,3603.0,1556.66436621]
[1762785338459,53.43555322,3603.1,3603.0,1556.66436621]
[1762785338793,54.32300812,3603.1,3603.0,1549.75866721]
[1762785339096,23.15340812,3603.1,3603.0,1549.75866721]
[1762785339393,53.57090812,3603.1,3603.0,1549.74590659]
[1762785339606,23.57090812,3603.1,3603.0,1549.74590659]
[1762785340402,31.57090812,3603.1,3603.0,1549.74590659]
[1762785340599,53.55550812,3603.1,3603.0,1549.74590659]
[1762785340811,53.83400812,3603.1,3603.0,1549.74590659]
[1762785341010,62.32300812,3603.1,3603.0,1546.20751517]
[1762785341302,62.32300812,3603.1,3603.0,1545.3723166]
[1762785341456,62.32300812,3603.1,3603.0,1544.53710872]
[1762785341655,62.32300812,3603.1,3603.0,1543.48707601]
[1762785341852,66.69592718,3603.1,3603.0,1542.76891087]
[1762785342072,65.19392718,3603.1,3603.0,1542.5890244]
[1762785342558,65.19392718,3603.1,3603.0,1539.97995095]
[1762785342909,62.32300812,3603.1,3603.0,1535.20278125]
[1762785343193,63.69192718,3603.1,3603.0,1483.53733055]
[1762785343367,62.32300812,3603.1,3603.0,1481.53804085]
[1762785343795,62.32300812,3603.1,3603.0,1478.6504663]
[1762785344090,62.32400812,3603.1,3603.0,1476.04139285]
[1762785344588,54.32400812,3603.1,3603.0,1475.24539285]
[1762785344795,54.32400812,3603.1,3603.0,1474.76269385]
[1762785345093,54.32400812,3603.1,3603.0,1473.22359243]
[1762785345294,54.37400812,3603.1,3603.0,1472.35324205]
[1762785346195,55.74292718,3603.1,3603.0,1472.35324205]
[1762785346356,56.17877317,3603.1,3603.0,1472.35324205]
[1762785346557,56.53427717,3603.1,3603.0,1472.07856877]
[1762785346757,54.72951212,3603.1,3603.0,1469.35265716]
[1762785346957,54.77951212,3603.1,3603.0,1465.67561133]
[1762785347291,54.77951212,3603.1,3603.0,1461.76570383]
[1762785347491,54.72951212,3603.1,3603.0,1459.76641385]
[1762785347691,54.32400812,3603.1,3603.0,1457.63447167]
[1762785348201,54.37400812,3603.1,3603.0,1457.63447167]
[1762785348684,54.32400812,3603.1,3603.0,1457.63447167]
[1762785348991,55.15947537,3603.1,3603.0,1457.63447167]
[1762785349169,55.15947537,3603.1,3603.0,1456.09537025]
[1762785349370,55.15847537,3603.1,3603.0,1456.09537025]
[1762785349701,55.3157992,3603.1,3603.0,1456.09537025]
[1762785350198,54.1471992,3603.1,3603.0,1456.09537025]
[1762785350367,52.8874872,3603.1,3603.0,1456.09537025]
[1762785350570,22.8874872,3603.1,3603.0,1456.54687025]
[1762785350792,22.03814684,3603.1,3603.0,1454.53715062]
[1762785350964,22.43084404,3603.1,3603.0,1452.78565062]
[1762785351167,23.39994499,3603.1,3603.0,1450.78464193]
[1762785351369,22.14023299,3603.1,3603.0,1450.78464193]
[1762785351664,53.39994499,3603.1,3603.0,1450.78464193]
[1762785351863,64.40394499,3603.1,3603.0,1450.78464193]
[1762785352265,62.90194499,3603.1,3603.0,1450.78464193]
[1762785352610,62.27904899,3603.1,3603.0,1450.78464193]
[1762785353199,61.80544899,3603.1,3603.0,1450.50996865]
[1762785353588,62.24124478,3603.1,3603.0,1450.50996865]
[1762785353792,62.24124478,3603.1,3603.0,1446.97157723]
[1762785354011,62.24124478,3603.1,3603.0,1444.97228723]
[1762785354321,61.39994499,3603.1,3603.0,1444.97228723]
[1762785354472,62.27904899,3603.1,3603.0,1442.96907227]
[1762785354665,62.71482443,3603.1,3603.0,1442.50587227]
[1762785354885,62.27904899,3603.1,3603.0,1442.50587227]
[1762785355277,62.27904899,3603.1,3603.0,1441.20587227]
[1762785355798,62.55754899,3603.1,3603.0,1441.20587227]
[1762785356000,54.55754899,3603.1,3603.0,1441.20587227]
[1762785356303,54.55754899,3603.1,3603.0,1437.66748085]
[1762785356604,54.55754899,3603.1,3603.0,1437.20444529]
[1762785356801,54.55754899,3603.1,3603.0,1435.20515529]
[1762785357103,54.55754899,3603.1,3603.0,1433.20586529]
[1762785357507,54.55754899,3603.1,3603.0,1431.20657529]
[1762785357805,54.11423492,3603.1,3603.0,1428.3721565]
[1762785358006,22.85452292,3603.1,3603.0,1426.8392665]
[1762785358206,51.88202292,3603.1,3603.0,1426.8392665]
[1762785358503,53.83573492,3603.1,3603.0,1426.3728665]
[1762785358810,54.11423492,3603.1,3603.0,1426.3728665]
[1762785358970,54.11423492,3603.1,3603.0,1422.83447508]
[1762785359170,54.11423492,3603.1,3603.0,1420.83518508]
[1762785359504,54.11423492,3603.1,3603.0,1418.83589508]
[1762785360068,54.51973892,3603.1,3603.0,1418.5612218]
[1762785360312,54.51893892,3603.1,3603.0,1418.41603234]
[1762785360468,62.51893892,3603.1,3603.0,1418.41603234]
[1762785360674,62.51893892,3603.1,3603.0,1418.27084395]
[1762785360870,62.51893892,3603.1,3603.0,1416.03655534]
[1762785361104,62.82502614,3603.1,3603.0,1415.60080167]
[1762785361315,62.38923621,3603.1,3603.0,1415.01197164]
[1762785361545,63.75815527,3603.1,3603.0,1410.74173975]
[1762785361745,62.58449505,3603.1,3603.0,1405.8096329]
[1762785362047,64.08649505,3603.1,3603.0,1405.8096329]
[1762785362200,62.32638221,3603.1,3603.0,1405.8096329]
[1762785362397,64.33830127,3603.1,3603.0,1402.99987264]
[1762785362667,64.32320127,3603.1,3603.0,1401.14969108]
[1762785362960,64.32320127,3603.1,3603.0,1398.04053156]
[1762785363101,65.06593128,3603.1,3603.0,1319.14262936]
[1762785363473,65.45213128,3603.1,3603.0,1319.14262936]
[1762785363955,65.40213128,3603.1,3603.0,1319.14262936]
[1762785364106,59.98837832,3603.1,3603.0,1319.14262936]
[1762785364306,29.84311948,3603.1,3603.0,1238.13654895]
[1762785364548,59.84311948,3603.1,3603.0,1208.13654895]
[1762785364919,56.77020348,3603.1,3603.0,1208.13654895]
[1762785365130,34.49720348,3603.1,3603.0,1208.60294895]
[1762785365300,19.64243498,3603.1,3603.0,1208.60294895]
[1762785365501,37.54614698,3603.1,3603.0,1208.60294895]
[1762785365856,58.86914698,3603.1,3603.0,1206.25175663]
[1762785366020,56.37129791,3603.1,3603.0,1204.25246663]
[1762785366216,56.37129791,3603.1,3603.0,1200.20487401]
[1762785366409,56.37129791,3603.1,3603.0,1199.13217259]
[1762785366609,56.37129791,3603.1,3603.0,1198.66577259]
[1762785367211,55.11158591,3603.1,3603.0,1199.13217259]
[1762785368009,25.11158591,3603.1,3603.0,1198.93423026]
[1762785368261,24.28333022,3603.1,3603.0,1198.93423026]
[1762785368552,24.33561388,3603.1,3603.0,1198.93423026]
[1762785368930,23.07590188,3603.1,3603.0,1174.03512488]
[1762785369367,25.78875486,3603.1,3603.0,1170.49673346]
[1762785369917,55.78875486,3603.1,3603.0,1170.49673346]
[1762785370131,55.78875486,3603.1,3603.0,1170.03033346]
[1762785370313,55.78875486,3603.1,3603.0,1170.49673346]
[1762785370513,25.78875486,3603.1,3603.0,1170.49673346]
[1762785370711,26.22447599,3603.1,3603.0,1170.49673346]
[1762785371362,26.22447599,3603.1,3603.0,1168.95763204]
[1762785371814,27.72647599,3603.1,3603.0,1168.95763204]
[1762785372010,29.22847599,3603.1,3603.0,1168.95763204]
[1762785372288,21.22848411,3603.1,3603.0,1168.95763204]
[1762785372655,34.66448411,3603.1,3603.0,1168.95763204]
[1762785373170,21.22848411,3603.1,3603.0,1168.95763204]
[1762785373330,45.18748411,3603.1,3603.0,1168.95763204]
[1762785373516,48.36970039,3603.1,3603.0,1168.49123204]
[1762785374010,47.93397926,3603.1,3603.0,1166.49194204]
[1762785374356,47.93397926,3603.1,3603.0,1164.49265204]
[1762785374554,47.93397926,3603.1,3603.0,1164.21797876]
[1762785374555,48.33948326,3603.1,3603.0,1164.21797876]
[1762785374713,48.33948326,3603.1,3603.0,1162.21868876]
[1762785374913,48.33948326,3603.1,3603.0,1160.21939876]
[1762785375348,48.33948326,3603.1,3603.0,1158.22010876]
[1762785375645,48.33948326,3603.1,3603.0,1156.22081876]
[1762785375849,53.80323622,3603.1,3603.0,1154.22152876]
[1762785376388,53.80323622,3603.1,3603.0,1152.22223876]
[1762785377060,54.23900033,3603.1,3603.0,1152.22223876]
[1762785377806,54.23900033,3603.1,3603.0,1150.92223876]
[1762785378003,54.24000033,3603.1,3603.0,1148.88136353]
[1762785378150,54.24000033,3603.1,3603.0,1145.98356199]
[1762785378788,53.83449633,3603.1,3603.0,1144.73318865]
[1762785379090,53.83449633,3603.1,3603.0,1144.95726712]
[1762785379484,39.29949633,3603.1,3603.0,1144.95726712]
[1762785379810,38.03978433,3603.1,3603.0,1144.95726712]
[1762785380156,22.57278433,3603.1,3603.0,1144.95726712]
[1762785380476,23.83249633,3603.1,3603.0,1144.95726712]
[1762785380809,22.85128433,3603.1,3603.0,1144.95726712]
[1762785380957,22.57278433,3603.1,3603.0,1144.95726712]
[1762785381159,53.83249633,3603.1,3603.0,1143.4181657]
[1762785381353,53.39673222,3603.1,3603.0,1143.4181657]
[1762785381757,53.39673222,3603.1,3603.0,1142.9517657]
[1762785381959,56.40073222,3603.1,3603.0,1142.9517657]
[1762785382367,56.67923222,3603.1,3603.0,1142.9517657]
[1762785382568,56.67923222,3603.1,3603.0,1142.4017657]
[1762785382569,54.19553622,3603.1,3603.0,1142.4017657]
[1762785382859,53.91703622,3603.1,3603.0,1142.4017657]
[1762785383060,53.80223622,3603.1,3603.0,1140.25380915]
[1762785383286,61.80223622,3603.1,3603.0,1140.12780242]
[1762785383701,62.19553622,3603.1,3603.0,1140.12780242]
[1762785384032,62.08073622,3603.1,3603.0,1140.12780242]
[1762785384313,62.07993622,3603.1,3603.0,1140.12780242]
[1762785384685,59.44422022,3603.1,3603.0,1140.59420242]
[1762785384881,29.44422022,3603.1,3603.0,1140.59420242]
[1762785385078,29.49000394,3603.1,3603.0,1140.59420242]
[1762785385922,23.49000394,3603.1,3603.0,1140.59420242]
[1762785386220,17.49000394,3603.1,3603.0,1140.59420242]
[1762785386582,18.74971594,3603.1,3603.0,1139.055101]
[1762785387020,37.37671594,3603.1,3603.0,1139.055101]
[1762785387195,29.37671594,3603.1,3603.0,1139.055101]
[1762785387721,53.39572639,3603.1,3603.0,1138.588701]
[1762785388602,53.39572639,3603.1,3603.0,1137.049053]
[1762785389328,53.87592639,3603.1,3603.0,1137.049053]
[1762785390224,54.20442639,3603.1,3603.0,1087.059053]
[1762785390523,54.20442639,3603.1,3603.0,1066.45618702]
[1762785391025,54.20442639,3603.1,3603.0,1066.27591823]
[1762785391249,54.20442639,3603.1,3603.0,982.82297755]
[1762785391414,54.64033786,3603.1,3603.0,982.64286008]
[1762785391811,56.14233786,3603.1,3603.0,981.59087032]
[1762785392015,57.64433786,3603.1,3603.0,981.40922418]
[1762785392357,57.64433786,3603.1,3603.0,980.70772844]
[1762785392530,57.64433786,3603.1,3603.0,963.79972844]
[1762785392531,46.24633786,3603.1,3603.0,963.79972844]
[1762785392724,44.74433786,3603.1,3603.0,963.79972844]
[1762785393048,43.02133786,3603.1,3603.0,962.66995075]
[1762785393352,24.64033786,3603.1,3603.0,905.80668527]
[1762785393653,24.64033786,3603.1,3603.0,876.89085399]
[1762785393849,26.00925692,3603.1,3603.0,844.69589312]
[1762785394147,26.00925692,3603.1,3603.0,793.84046107]